bitfinex/quotes_BTCUSD_20260125
["timestamp","ask_amount","ask_price","bid_price","bid_amount"]
[1769315560881,0.03,89055.0,89042.0,0.71671649]
[1769315561840,0.03,89055.0,89040.0,0.2172639]
[1769315562017,0.0301711,89057.0,89040.0,0.2172639]
[1769315562165,0.04638397,89057.0,89040.0,0.2172639]
[1769315562600,0.04638397,89057.0,89040.0,0.71671649]
[1769315562803,0.04638397,89057.0,89041.0,0.2172639]
[1769315563799,0.03,89056.0,89041.0,0.2172639]
[1769315569212,0.1424143,89056.0,89041.0,0.2172639]
[1769315571865,0.03,89056.0,89041.0,0.2172639]
[1769315573276,0.01638397,89057.0,89043.0,0.2172639]
[1769315573277,0.03,89055.0,89043.0,0.2172639]
[1769315573475,0.03,89055.0,89044.0,0.2172639]
[1769315574277,0.0001711,89057.0,89044.0,0.2172639]
[1769315576164,0.289567,89060.0,89044.0,0.2172639]
[1769315576363,0.01621287,89059.0,89044.0,0.2172639]
[1769315579399,0.03,89058.0,89044.0,0.2172639]
[1769315586278,0.03,89057.0,89044.0,0.2172639]
[1769315587278,0.03,89056.0,89044.0,0.2172639]
[1769315588330,0.03,89055.0,89044.0,0.2172639]
[1769315589293,0.03,89054.0,89044.0,0.2172639]
[1769315590311,0.03,89058.0,89044.0,0.2172639]
[1769315591384,0.03,89057.0,89044.0,0.2172639]
[1769315591877,0.04122876,89057.0,89044.0,0.2172639]
[1769315592078,0.03,89057.0,89044.0,0.2172639]
[1769315592548,0.03,89056.0,89044.0,0.2172639]
[1769315593451,0.03,89058.0,89044.0,0.2172639]
[1769315593988,0.04122863,89058.0,89044.0,0.2172639]
[1769315594189,0.03,89058.0,89044.0,0.2172639]
[1769315595075,0.03,89057.0,89044.0,0.2172639]
[1769315596341,0.03,89059.0,89044.0,0.2172639]
[1769315598569,0.03,89058.0,89044.0,0.2172639]
[1769315598729,0.03014242,89058.0,89045.0,0.21051788]
[1769315599777,0.03,89057.0,89045.0,0.21051788]
[1769315600785,0.03,89056.0,89045.0,0.21051788]
[1769315601987,0.03,89055.0,89045.0,0.21051788]
[1769315602534,0.03,89055.0,89046.0,0.72006615]
[1769315602783,0.03,89055.0,89047.0,0.21051788]
[1769315603003,0.00014242,89058.0,89047.0,0.21051788]
[1769315605345,0.00014242,89058.0,89047.0,0.20216034]
[1769315610282,0.00014242,89058.0,89035.0,0.22871153]
[1769315610283,0.03,89056.0,89037.0,0.72006615]
[1769315610516,0.03,89056.0,89031.0,0.05615996]
[1769315610517,0.04122977,89049.0,89039.0,0.20633911]
[1769315610734,0.03,89049.0,89039.0,0.20633911]
[1769315613233,0.04122977,89049.0,89039.0,0.20633911]
[1769315613432,0.03,89047.0,89039.0,0.20633911]
[1769315614408,0.03,89046.0,89039.0,0.20633911]
[1769315615406,0.03,89045.0,89039.0,0.20633911]
[1769315616506,0.03,89044.0,89039.0,0.20633911]
[1769315617464,0.03,89043.0,89039.0,0.20633911]
[1769315618486,0.03,89049.0,89039.0,0.20633911]
[1769315619083,0.03,89049.0,89040.0,0.01247594]
[1769315619285,0.03,89049.0,89040.0,0.22556135]
[1769315619583,0.03,89056.0,89043.0,0.67220207]
[1769315619900,0.04122888,89056.0,89044.0,0.21308541]
[1769315620122,0.04122888,89056.0,89044.0,0.21153638]
[1769315620295,0.04122888,89056.0,89044.0,0.20535116]
[1769315620503,0.03,89055.0,89044.0,0.20071214]
[1769315621636,0.03,89054.0,89044.0,0.20071214]
[1769315622626,0.03,89055.0,89044.0,0.20071214]
[1769315623626,0.04122888,89056.0,89044.0,0.20071214]
[1769315624796,0.03,89056.0,89044.0,0.20071214]
[1769315625163,0.15358411,89057.0,89044.0,0.20071214]
[1769315625361,0.03,89057.0,89044.0,0.20071214]
[1769315625981,0.14235528,89057.0,89044.0,0.20071214]
[1769315626177,0.15358404,89057.0,89044.0,0.20071214]
[1769315626378,0.03,89056.0,89045.0,0.67220207]
[1769315626601,0.03,89056.0,89046.0,0.210552]
[1769315626805,0.03,89056.0,89046.0,0.20282003]
[1769315628539,0.03,89055.0,89046.0,0.20282003]
[1769315629631,0.03,89054.0,89046.0,0.20282003]
[1769315630516,0.03,89053.0,89046.0,0.20282003]
[1769315631806,0.03,89055.0,89046.0,0.20282003]
[1769315632807,0.03,89054.0,89046.0,0.20282003]
[1769315633859,0.03,89053.0,89046.0,0.20282003]
[1769315634580,0.05614301,89059.0,89046.0,0.20282003]
[1769315634729,0.05614301,89059.0,89046.0,0.20296245]
[1769315634928,0.03,89055.0,89046.0,0.20296245]
[1769315636977,0.03,89054.0,89046.0,0.20296245]
[1769315638403,0.03,89053.0,89046.0,0.20296245]
[1769315639380,0.03,89055.0,89046.0,0.20296245]
[1769315640410,0.03,89054.0,89046.0,0.20296245]
[1769315641493,0.03,89053.0,89046.0,0.20296245]
[1769315642558,0.04122914,89054.0,89046.0,0.20296245]
[1769315642759,0.03,89047.0,89034.0,0.66863905]
[1769315642964,0.03,89047.0,89037.0,0.22172476]
[1769315643813,0.01122977,89049.0,89037.0,0.22172476]
[1769315643814,0.03,89046.0,89037.0,0.22172476]
[1769315644885,0.03,89045.0,89037.0,0.22172476]
[1769315645970,0.03,89044.0,89037.0,0.22172476]
[1769315646976,0.03,89043.0,89037.0,0.22172476]
[1769315648075,0.03,89048.0,89037.0,0.22172476]
[1769315648519,0.05614868,89050.0,89037.0,0.22172476]
[1769315648710,0.34557611,89050.0,89037.0,0.22172476]
[1769315649214,0.04123065,89042.0,89037.0,0.22172476]
[1769315649416,0.03,89040.0,89031.0,0.2284712]
[1769315649642,0.03,89037.0,89031.0,0.2284712]
[1769315650580,0.03,89036.0,89031.0,0.2284712]
[1769315651191,0.0373444,89035.0,89030.0,0.0001088]
[1769315651414,0.02611287,89035.0,89030.0,0.0001088]
[1769315651644,0.01123128,89037.0,89030.0,0.0001088]
[1769315651835,0.01123115,89038.0,89030.0,0.0001088]
[1769315652712,0.01123128,89037.0,89030.0,0.0001088]
[1769315653442,0.01123115,89038.0,89030.0,0.0001088]
[1769315653635,0.01123141,89036.0,89030.0,0.0001088]
[1769315654001,0.01123128,89037.0,89030.0,0.0001088]
[1769315654404,0.01123115,89038.0,89030.0,0.0001088]
[1769315654798,0.06738775,89037.0,89030.0,0.0001088]
[1769315655003,0.01123179,89033.0,89030.0,0.0001088]
[1769315655236,0.01123166,89034.0,89030.0,0.0001088]
[1769315655701,0.01123179,89033.0,89030.0,0.0001088]
[1769315656330,0.05226901,89031.0,89030.0,0.0001088]
[1769315657284,0.71053259,89031.0,89030.0,0.0001088]
[1769315660847,0.01123254,89027.0,89025.0,0.0001496]
[1769315661052,0.01123254,89027.0,89025.0,0.0001039]
[1769315661254,0.03,89025.0,89017.0,0.65933089]
[1769315661867,0.01123267,89026.0,89016.0,0.0001496]
[1769315661868,0.03,89023.0,89016.0,0.0001496]
[1769315662069,0.03,89023.0,89012.0,0.23746637]
[1769315662294,0.03,89023.0,89012.0,0.22443042]
[1769315662486,0.03,89023.0,89012.0,0.21319374]
[1769315662664,0.03,89023.0,89012.0,0.2095737]
[1769315662869,0.01123279,89025.0,89012.0,0.20052325]
[1769315662870,0.04123292,89024.0,89012.0,0.20052325]
[1769315663123,0.03007988,89024.0,89012.0,0.1914723]
[1769315663571,0.03,89022.0,89012.0,0.1914723]
[1769315663775,0.03,89022.0,89012.0,0.18310436]
[1769315663972,0.04123317,89022.0,89012.0,0.15975342]
[1769315664156,0.28934744,89022.0,89012.0,0.15641756]
[1769315664672,0.28934744,89022.0,89012.0,0.12973057]
[1769315664891,0.01123355,89019.0,89007.0,0.0001496]
[1769315665094,0.01123368,89018.0,89007.0,0.0001496]
[1769315665243,0.0412338,89017.0,89007.0,0.0001496]
[1769315665447,0.03,89016.0,89008.0,0.1808434]
[1769315666602,0.03,89015.0,89008.0,0.1808434]
[1769315667168,0.03,89015.0,89008.0,0.65933089]
[1769315667346,0.03,89015.0,89009.0,0.1808434]
[1769315667552,0.03,89014.0,89009.0,0.1808434]
[1769315667755,0.03,89014.0,89011.0,0.1808434]
[1769315667952,0.03,89014.0,89011.0,0.17013774]
[1769315668205,0.03,89014.0,89011.0,0.1665692]
[1769315668407,0.03,89014.0,89011.0,0.14341544]
[1769315668620,0.03,89013.0,89011.0,0.13547875]
[1769315668832,0.03,89013.0,89011.0,0.11299378]
[1769315669153,0.03,89013.0,89011.0,0.10924623]
[1769315669735,0.03,89012.0,89011.0,0.10924623]
[1769315670296,0.06739942,89022.0,89011.0,0.10924623]
[1769315670524,0.28934744,89021.0,89011.0,0.10924623]
[1769315670902,0.03,89020.0,89011.0,0.10924623]
[1769315671223,0.04123343,89020.0,89011.0,0.10924623]
[1769315671424,0.03,89018.0,89011.0,0.10924623]
[1769315671627,0.03,89018.0,89011.0,0.10800347]
[1769315671801,0.03,89018.0,89011.0,0.09301288]
[1769315672436,0.03,89017.0,89011.0,0.09301288]
[1769315672639,0.0112333,89021.0,89011.0,0.09301288]
[1769315672958,0.30058074,89021.0,89011.0,0.09301288]
[1769315673317,0.01123343,89020.0,89011.0,0.09301288]
[1769315673615,0.04123343,89020.0,89011.0,0.09301288]
[1769315673820,0.03,89018.0,89011.0,0.09301288]
[1769315674516,0.03,89018.0,89012.0,0.15821682]
[1769315674941,0.03,89017.0,89012.0,0.15821682]
[1769315675951,0.06740069,89020.0,89012.0,0.15821682]
[1769315675952,0.03,89016.0,89012.0,0.15821682]
[1769315676959,0.03,89015.0,89012.0,0.15707302]
[1769315677161,0.03,89015.0,89012.0,0.13478511]
[1769315677359,0.03,89015.0,89012.0,0.10878198]
[1769315677541,0.03,89015.0,89012.0,0.08277827]
[1769315677745,0.03,89015.0,89012.0,0.05677396]
[1769315678062,0.03,89020.0,89012.0,0.01962392]
[1769315679901,0.13313549,89021.0,89012.0,0.01962392]
[1769315680099,0.03,89020.0,89012.0,0.01962392]
[1769315680669,0.04123343,89020.0,89012.0,0.01962392]
[1769315680870,0.03,89018.0,89012.0,0.01962392]
[1769315681911,0.03,89017.0,89012.0,0.01962392]
[1769315683065,0.03,89016.0,89012.0,0.01962392]
[1769315684217,0.03,89015.0,89012.0,0.01962392]
[1769315684418,0.03,89015.0,89012.0,0.66758826]
[1769315685309,0.03,89014.0,89012.0,0.66758826]
[1769315686154,7.988e-05,89024.0,89014.0,0.01]
[1769315686366,7.988e-05,89024.0,89012.0,0.66758826]
[1769315687903,7.988e-05,89024.0,89013.0,0.80618116]
[1769315688391,7.988e-05,89024.0,89013.0,0.64796434]
[1769315688592,7.988e-05,89024.0,89014.0,0.80618116]
[1769315688745,7.988e-05,89024.0,89015.0,0.15821682]
[1769315690576,7.988e-05,89024.0,89015.0,0.15745408]
[1769315690780,7.988e-05,89024.0,89015.0,0.14669062]
[1769315690961,7.988e-05,89024.0,89015.0,0.14521544]
[1769315691161,7.988e-05,89024.0,89015.0,0.12637725]
[1769315691346,7.988e-05,89024.0,89015.0,0.12368584]
[1769315692476,7.988e-05,89024.0,89015.0,0.10968231]
[1769315692679,7.988e-05,89024.0,89015.0,0.09967951]
[1769315694618,7.988e-05,89024.0,89014.0,0.64796434]
[1769315695116,0.03,89023.0,89014.0,0.64796434]
[1769315696423,0.03,89022.0,89014.0,0.64796434]
[1769315697399,7.988e-05,89024.0,89014.0,0.64796434]
[1769315697799,0.03007988,89024.0,89014.0,0.64796434]
[1769315698950,7.988e-05,89024.0,89014.0,0.64796434]
[1769315704026,7.988e-05,89024.0,89017.0,0.17085157]
[1769315704225,0.26470055,89038.0,89019.0,0.17085157]
[1769315704357,0.14241211,89037.0,89021.0,0.66846789]
[1769315705097,0.15364339,89037.0,89021.0,0.66846789]
[1769315705331,0.03,89035.0,89021.0,0.66846789]
[1769315705535,0.03,89035.0,89022.0,0.66846789]
[1769315705683,0.14241211,89035.0,89022.0,0.66846789]
[1769315705890,0.03,89033.0,89022.0,0.66846789]
[1769315706076,0.14241211,89033.0,89022.0,0.66846789]
[1769315706270,0.03,89033.0,89022.0,0.66846789]
[1769315706966,0.01123179,89033.0,89022.0,0.66846789]
[1769315707171,0.24233507,89037.0,89022.0,0.66846789]
[1769315707586,0.01123153,89035.0,89022.0,0.66846789]
[1769315707992,0.01123166,89034.0,89022.0,0.66846789]
[1769315708205,0.03,89033.0,89022.0,0.66846789]
[1769315708807,0.04123179,89033.0,89022.0,0.66846789]
[1769315708970,0.03,89033.0,89022.0,0.66846789]
[1769315709569,0.04123179,89033.0,89021.0,0.17085157]
[1769315709751,0.03,89033.0,89021.0,0.17085157]
[1769315709956,0.01123166,89034.0,89021.0,0.83931946]
[1769315709957,0.03,89024.0,89021.0,0.83931946]
[1769315716794,0.03,89024.0,89022.0,0.66574542]
[1769315719743,0.17494709,89037.0,89023.0,0.18467487]
[1769315719920,0.17494709,89037.0,89023.0,0.84978457]
[1769315719921,0.14233279,89036.0,89023.0,0.84978457]
[1769315720327,0.11243363,89037.0,89023.0,0.84978457]
[1769315721464,0.03,89037.0,89023.0,0.84978457]
[1769315722428,0.03,89036.0,89024.0,0.66574542]
[1769315722636,0.0001496,89047.0,89023.0,0.01123305]
[1769315722836,0.0001496,89047.0,89033.0,0.66574542]
[1769315723037,0.0001496,89047.0,89033.0,0.85042029]
[1769315723243,0.11,89039.0,89033.0,0.85042029]
[1769315723624,0.03,89038.0,89031.0,0.18467487]
[1769315723829,0.03,89038.0,89031.0,0.85042029]
[1769315724876,0.03,89038.0,89031.0,0.18467487]
[1769315727677,0.03,89038.0,89026.0,0.66574542]
[1769315728031,0.03,89038.0,89026.0,0.85042029]
[1769315733368,0.03,89038.0,89027.0,0.70743333]
[1769315733512,0.03,89038.0,89027.0,0.88360738]
[1769315734241,0.03,89038.0,89027.0,0.70743333]
[1769315734453,0.03,89038.0,89028.0,0.17617405]
[1769315734633,0.03,89038.0,89029.0,0.02189649]
[1769315735851,0.03,89038.0,89029.0,0.72932982]
[1769315736050,0.03,89038.0,89029.0,0.17617405]
[1769315736253,0.03,89038.0,89030.0,0.88682364]
[1769315736455,0.03,89038.0,89031.0,0.00322183]
[1769315736862,0.03,89038.0,89031.0,0.71065516]
[1769315737087,0.03,89038.0,89032.0,0.00373657]
[1769315741509,0.03,89038.0,89032.0,0.01561352]
[1769315743158,0.03,89038.0,89032.0,0.02190749]
[1769315750565,0.03,89046.0,89032.0,0.02190749]
[1769315751642,0.03,89045.0,89032.0,0.02190749]
[1769315751945,0.03,89045.0,89032.0,0.90551487]
[1769315752146,0.03,89045.0,89032.0,0.88360738]
[1769315752355,0.03,89045.0,89033.0,0.01573819]
[1769315752740,0.03,89044.0,89033.0,0.01573819]
[1769315753990,0.03,89048.0,89033.0,0.01573819]
[1769315755069,0.03,89047.0,89033.0,0.01573819]
[1769315756939,0.03,89045.0,89033.0,0.01573819]
[1769315758041,0.03,89046.0,89033.0,0.01573819]
[1769315761835,0.03,89046.0,89033.0,0.02246358]
[1769315762536,0.03,89045.0,89033.0,0.02246358]
[1769315762738,0.03,89045.0,89029.0,0.68692002]
[1769315762963,0.03,89045.0,89031.0,0.86438281]
[1769315763175,0.03,89045.0,89032.0,0.02246382]
[1769315763577,0.03,89044.0,89032.0,0.02246382]
[1769315763780,0.03,89044.0,89034.0,0.86438281]
[1769315764892,0.03,89043.0,89034.0,0.86438281]
[1769315765665,0.03,89042.0,89034.0,0.86438281]
[1769315766908,0.03,89049.0,89034.0,0.86438281]
[1769315770247,0.03,89049.0,89035.0,0.01606805]
[1769315771522,0.04122977,89049.0,89035.0,0.01606805]
[1769315772075,0.03,89049.0,89035.0,0.01606805]
[1769315772525,0.06737643,89052.0,89035.0,0.01606805]
[1769315772526,0.03,89048.0,89035.0,0.01606805]
[1769315773739,0.03,89047.0,89035.0,0.01606805]
[1769315773939,0.03,89047.0,89033.0,0.17930672]
[1769315774272,0.03,89047.0,89036.0,0.63983778]
[1769315774781,0.03,89053.0,89036.0,0.63983778]
[1769315777381,0.03,89053.0,89037.0,0.01466021]
[1769315781793,0.03,89054.0,89037.0,0.01466021]
[1769315781960,0.14239521,89054.0,89037.0,0.01466021]
[1769315783067,0.15362435,89054.0,89037.0,0.01466021]
[1769315783262,0.04122914,89054.0,89037.0,0.01466021]
[1769315783682,0.20380695,89054.0,89037.0,0.01466021]
[1769315785039,0.21503609,89054.0,89037.0,0.01466021]
[1769315785436,0.20380695,89054.0,89037.0,0.01466021]
[1769315786027,0.21503609,89054.0,89037.0,0.01466021]
[1769315786429,0.20380695,89054.0,89037.0,0.01466021]
[1769315786811,0.21503609,89054.0,89037.0,0.01466021]
[1769315787125,0.04122939,89052.0,89037.0,0.01466021]
[1769315787322,0.01122952,89051.0,89037.0,0.01466021]
[1769315787541,0.03,89050.0,89037.0,0.01466021]
[1769315787746,0.04122964,89050.0,89037.0,0.01466021]
[1769315787948,0.03,89048.0,89037.0,0.01466021]
[1769315789062,0.04122989,89048.0,89037.0,0.01466021]
[1769315789882,0.03,89046.0,89037.0,0.01466021]
[1769315790897,0.03,89045.0,89035.0,0.17930672]
[1769315791379,0.03,89043.0,89035.0,0.17930672]
[1769315791815,0.04123052,89043.0,89035.0,0.17930672]
[1769315792000,0.03,89041.0,89035.0,0.17930672]
[1769315792969,0.03,89040.0,89035.0,0.17930672]
[1769315793895,0.03,89040.0,89031.0,0.63983778]
[1769315794093,0.03,89039.0,89031.0,0.82482846]
[1769315794715,0.01123015,89046.0,89031.0,0.82482846]
[1769315794911,0.06737863,89049.0,89031.0,0.82482846]
[1769315795113,0.03,89048.0,89031.0,0.82482846]
[1769315795913,0.03,89045.0,89031.0,0.82482846]
[1769315797038,0.03,89048.0,89031.0,0.82482846]
[1769315797217,0.03,89046.0,89031.0,0.82482846]
[1769315798641,0.03,89044.0,89031.0,0.82482846]
[1769315799805,0.03,89043.0,89031.0,0.82482846]
[1769315801124,0.03,89042.0,89031.0,0.82482846]
[1769315801524,0.03,89042.0,89032.0,0.18499068]
[1769315802048,0.03,89041.0,89032.0,0.18499068]
[1769315803255,0.03,89040.0,89032.0,0.18499068]
[1769315804332,0.03,89045.0,89032.0,0.18499068]
[1769315805244,0.08992098,89062.0,89025.0,0.0001496]
[1769315805245,0.0001496,89065.0,89044.0,0.31945124]
[1769315805448,0.03,89064.0,89049.0,0.66204276]
[1769315805624,0.03,89064.0,89054.0,0.66204276]
[1769315806031,0.03,89064.0,89050.0,0.18499068]
[1769315806236,0.04122788,89064.0,89050.0,0.18499068]
[1769315806438,0.03,89062.0,89050.0,0.18499068]
[1769315806644,0.03014244,89062.0,89050.0,0.18499068]
[1769315807576,0.00014244,89062.0,89050.0,0.18499068]
[1769315807783,0.03,89061.0,89050.0,0.18499068]
[1769315808849,0.03014244,89062.0,89050.0,0.18499068]
[1769315809781,0.04137057,89062.0,89050.0,0.18499068]
[1769315810173,0.03014244,89062.0,89050.0,0.18499068]
[1769315811214,0.03014244,89062.0,89046.0,0.66204276]
[1769315811420,0.03,89057.0,89046.0,0.66204276]
[1769315812473,0.03,89056.0,89046.0,0.66204276]
[1769315812683,0.00014244,89062.0,89056.0,0.18499068]
[1769315812882,0.0001496,89074.0,89056.0,0.18499068]
[1769315812883,0.01122762,89066.0,89056.0,0.01]
[1769315813056,0.00687409,89069.0,89050.0,0.28933217]
[1769315813057,0.00027749,89065.0,89050.0,0.28933217]
[1769315813276,0.00027749,89065.0,89054.0,0.18499068]
[1769315813541,0.00027749,89065.0,89055.0,0.18499068]
[1769315815330,0.03,89064.0,89055.0,0.18499068]
[1769315816042,0.03,89064.0,89054.0,0.66204276]
[1769315816385,0.03027749,89065.0,89054.0,0.66204276]
[1769315816882,0.04150524,89065.0,89050.0,0.47432285]
[1769315817122,0.03,89063.0,89050.0,0.18499068]
[1769315817294,0.62692663,89063.0,89046.0,0.17252]
[1769315820138,0.03,89057.0,89044.0,0.18499068]
[1769315821192,0.03596927,89059.0,89044.0,0.18499068]
[1769315822767,0.03,89057.0,89044.0,0.18499068]
[1769315823826,0.03,89056.0,89044.0,0.18499068]
[1769315824971,0.04719778,89059.0,89044.0,0.18499068]
[1769315825170,0.03596927,89059.0,89044.0,0.18499068]
[1769315825608,0.04719778,89059.0,89044.0,0.18499068]
[1769315825724,0.03596927,89059.0,89044.0,0.18499068]
[1769315826162,0.03,89056.0,89042.0,0.66204276]
[1769315826364,0.03,89052.0,89040.0,0.18829446]
[1769315827402,0.03,89051.0,89040.0,0.18829446]
[1769315827947,0.03,89051.0,89042.0,0.80104163]
[1769315828390,0.03,89057.0,89042.0,0.80104163]
[1769315829500,0.20353358,89061.0,89043.0,0.00306057]
[1769315829501,0.03,89059.0,89043.0,0.00306057]
[1769315830279,0.19230533,89061.0,89043.0,0.00306057]
[1769315830280,0.03,89060.0,89043.0,0.00306057]
[1769315831083,0.03596927,89060.0,89043.0,0.00306057]
[1769315831909,0.03033718,89065.0,89044.0,0.8190879]
[1769315832156,0.03027749,89065.0,89046.0,0.61274717]
[1769315832365,0.03027749,89065.0,89051.0,0.61274717]
[1769315832537,0.03027749,89065.0,89052.0,0.6278788]
[1769315832703,0.03027749,89065.0,89053.0,0.00193998]
[1769315832904,0.03,89064.0,89053.0,0.0030629]
[1769315833331,0.03,89064.0,89051.0,0.0030629]
[1769315833973,0.03,89063.0,89051.0,0.0030629]
[1769315835025,0.00027749,89065.0,89051.0,0.0030629]
[1769315835225,0.00033718,89065.0,89051.0,0.0030629]
[1769315836627,0.00033718,89065.0,89051.0,0.00476986]
[1769315836960,0.00033718,89065.0,89048.0,0.21336053]
[1769315837719,0.03033718,89065.0,89048.0,0.21336053]
[1769315838820,0.00033718,89065.0,89048.0,0.21336053]
[1769315840454,0.00033718,89065.0,89048.0,0.20858945]
[1769315840904,0.03,89064.0,89048.0,0.20858945]
[1769315841902,0.03,89063.0,89048.0,0.20858945]
[1769315843089,0.03,89062.0,89048.0,0.20858945]
[1769315843951,0.03,89061.0,89048.0,0.20858945]
[1769315844457,5.969e-05,89060.0,89041.0,0.20858945]
[1769315844692,0.03,89059.0,89041.0,0.20858945]
[1769315845139,0.03005969,89059.0,89041.0,0.20858945]
[1769315845316,0.03005969,89059.0,89041.0,0.62593988]
[1769315845535,5.969e-05,89059.0,89042.0,0.20858945]
[1769315845712,0.03,89058.0,89042.0,0.20858945]
[1769315846681,5.969e-05,89059.0,89042.0,0.20858945]
[1769315847715,0.03005969,89059.0,89042.0,0.20858945]
[1769315848677,5.969e-05,89059.0,89042.0,0.20858945]
[1769315850936,0.03,89060.0,89042.0,0.20858945]
[1769315851221,0.01122762,89066.0,89040.0,0.28922129]
[1769315851222,0.03,89059.0,89045.0,0.21083813]
[1769315852348,0.03,89060.0,89045.0,0.21083813]
[1769315853181,0.03,89059.0,89045.0,0.21083813]
[1769315854496,0.03,89060.0,89045.0,0.21083813]
[1769315854977,0.03,89060.0,89046.0,0.62962927]
[1769315855156,0.03,89060.0,89047.0,0.21083813]
[1769315855560,0.03,89059.0,89047.0,0.21083813]
[1769315856676,0.03,89062.0,89047.0,0.21083813]
[1769315857278,0.03,89062.0,89049.0,0.21083813]
[1769315857486,0.03,89062.0,89050.0,0.21416665]
[1769315857723,0.03,89061.0,89050.0,0.21416665]
[1769315858832,0.03033718,89065.0,89050.0,0.21416665]
[1769315859797,0.00033718,89065.0,89050.0,0.21416665]
[1769315860021,0.00033718,89065.0,89050.0,0.21083813]
[1769315861538,0.03,89064.0,89050.0,0.21083813]
[1769315862041,0.04122788,89064.0,89050.0,0.21083813]
[1769315862545,0.03,89064.0,89050.0,0.21083813]
[1769315862947,0.04122788,89064.0,89050.0,0.21083813]
[1769315863332,0.03,89063.0,89050.0,0.21083813]
[1769315864370,0.03,89062.0,89050.0,0.21083813]
[1769315865351,0.00033718,89065.0,89050.0,0.21083813]
[1769315867961,0.03033718,89065.0,89050.0,0.21083813]
[1769315869277,0.00033718,89065.0,89050.0,0.21083813]
[1769315870394,0.03,89064.0,89050.0,0.21083813]
[1769315870589,0.04122788,89064.0,89050.0,0.21083813]
[1769315871868,0.03,89062.0,89050.0,0.21083813]
[1769315872773,0.04122813,89062.0,89050.0,0.21083813]
[1769315873859,0.01122825,89061.0,89050.0,0.21083813]
[1769315874063,0.03,89060.0,89050.0,0.21083813]
[1769315875068,0.03,89059.0,89050.0,0.21083813]
[1769315876218,0.03,89058.0,89050.0,0.21083813]
[1769315877330,0.01122838,89060.0,89050.0,0.21083813]
[1769315877331,0.03,89057.0,89050.0,0.21083813]
[1769315878376,0.03,89056.0,89050.0,0.21083813]
[1769315878693,0.03,89056.0,89041.0,0.20858972]
[1769315879101,0.03,89053.0,89041.0,0.20858972]
[1769315880045,0.03,89056.0,89041.0,0.20858972]
[1769315880449,0.04122888,89056.0,89041.0,0.20858972]
[1769315880847,0.04122952,89051.0,89041.0,0.20858972]
[1769315881028,0.03,89051.0,89041.0,0.20858972]
[1769315881943,0.03,89050.0,89041.0,0.20858972]
[1769315883073,0.03,89049.0,89041.0,0.20858972]
[1769315884096,5.969e-05,89056.0,89041.0,0.20858972]
[1769315884896,0.03005969,89056.0,89041.0,0.20858972]
[1769315885902,0.03,89055.0,89041.0,0.20858972]
[1769315886890,5.969e-05,89056.0,89041.0,0.20858972]
[1769315889911,0.03,89054.0,89041.0,0.20858972]
[1769315890749,0.03,89054.0,89041.0,0.62647414]
[1769315890950,0.03,89057.0,89042.0,0.21083824]
[1769315891358,0.04122876,89057.0,89042.0,0.21083824]
[1769315892522,0.03,89057.0,89042.0,0.21083824]
[1769315893082,0.04122876,89057.0,89042.0,0.21083824]
[1769315893283,0.03,89057.0,89042.0,0.21083824]
[1769315894884,0.03,89055.0,89042.0,0.21083824]
[1769315895937,0.03,89054.0,89042.0,0.21083824]
[1769315897628,0.03,89057.0,89042.0,0.21083824]
[1769315898599,0.03,89056.0,89042.0,0.21083824]
[1769315899096,0.03,89056.0,89043.0,0.01711888]
[1769315899297,0.03,89056.0,89044.0,0.21308681]
[1769315899650,0.03,89057.0,89044.0,0.21308681]
[1769315899900,0.03,89055.0,89044.0,0.21308681]
[1769315900905,0.03,89058.0,89044.0,0.21308681]
[1769315902673,0.04122863,89058.0,89044.0,0.21308681]
[1769315902879,0.03,89055.0,89044.0,0.21308681]
[1769315903502,0.15479685,89063.0,89044.0,0.21308681]
[1769315903950,0.03,89057.0,89044.0,0.21308681]
[1769315905119,0.04122876,89057.0,89044.0,0.21308681]
[1769315905917,0.03,89055.0,89044.0,0.21308681]
[1769315906923,0.03,89056.0,89044.0,0.21308681]
[1769315907820,0.05614236,89060.0,89044.0,0.21308681]
[1769315908058,0.04122876,89057.0,89044.0,0.21308681]
[1769315908437,0.03,89057.0,89044.0,0.21308681]
[1769315909096,0.03,89056.0,89044.0,0.21308681]
[1769315910191,0.03,89055.0,89044.0,0.21308681]
[1769315911212,0.03,89054.0,89044.0,0.21308681]
[1769315912331,0.03,89053.0,89044.0,0.21308681]
[1769315913288,0.04122876,89057.0,89044.0,0.21308681]
[1769315913497,0.03,89057.0,89044.0,0.21308681]
[1769315914143,0.04122876,89057.0,89044.0,0.21308681]
[1769315915806,0.03,89057.0,89044.0,0.21308681]
[1769315916203,0.04122876,89057.0,89044.0,0.21308681]
[1769315916508,0.03,89055.0,89044.0,0.21308681]
[1769315917514,0.04122901,89055.0,89044.0,0.21308681]
[1769315917658,0.03,89053.0,89044.0,0.21308681]
[1769315918979,0.03,89060.0,89044.0,0.21308681]
[1769315919184,0.04122914,89054.0,89044.0,0.21308681]
[1769315919390,0.03,89052.0,89044.0,0.21308681]
[1769315920439,0.03,89051.0,89044.0,0.21308681]
[1769315921390,0.03,89054.0,89044.0,0.21308681]
[1769315922455,0.03,89053.0,89044.0,0.21308681]
[1769315923575,0.03,89052.0,89044.0,0.21308681]
[1769315924625,0.04122876,89057.0,89044.0,0.21308681]
[1769315927456,0.03,89055.0,89044.0,0.21308681]
[1769315928650,0.04122901,89055.0,89044.0,0.21308681]
[1769315929100,0.03,89055.0,89044.0,0.21308681]
[1769315930383,0.03,89054.0,89044.0,0.21308681]
[1769315931604,0.03,89057.0,89044.0,0.21308681]
[1769315934664,0.04122876,89057.0,89044.0,0.21308681]
[1769315934866,0.04122901,89055.0,89044.0,0.21308681]
[1769315935342,0.03,89053.0,89044.0,0.21308681]
[1769315936562,0.03,89052.0,89044.0,0.21308681]
[1769315937878,0.03,89053.0,89044.0,0.21308681]
[1769315939449,0.04122926,89053.0,89044.0,0.21308681]
[1769315939812,0.03,89053.0,89044.0,0.21308681]
[1769315940762,0.04122926,89053.0,89044.0,0.21308681]
[1769315941362,0.03,89053.0,89044.0,0.21308681]
[1769315941697,0.03,89052.0,89044.0,0.21308681]
[1769315943115,0.03,89051.0,89044.0,0.21308681]
[1769315944391,0.03,89054.0,89044.0,0.21308681]